fUSD/lending_fUSD_20240406
["ID","MTS","AMOUNT","RATE_DAILY","PERIOD"]
[321689402,1712386245359,-400.22516432,0.00024599,2]
[321689403,1712386245380,-404.23730206,0.00024599,2]
[321689404,1712386245404,-625.68,0.00024599,2]
[321689405,1712386245427,-625.68,0.00024599,2]
[321689406,1712386245449,-606.65,0.00024599,2]
[321689407,1712386245473,-606.65,0.00024599,2]
[321689408,1712386245497,-500.0,0.00024599,2]
[321689409,1712386245512,-500.0,0.00024599,2]
[321689410,1712386245521,-500.0,0.00024599,2]
[321689411,1712386245531,-500.0,0.00024599,2]
[321689412,1712386245540,-513.2,0.00024599,2]
[321689413,1712386245549,-500.0,0.00024599,2]
[321689414,1712386245558,-500.0,0.00024599,2]
[321689415,1712386245568,-500.0,0.00024599,2]
[321689416,1712386245577,-500.0,0.00024599,2]
[321689417,1712386245586,-565.59608158,0.000246,2]
[321689418,1712386245596,-556352.4177149,0.000246,2]
[321689419,1712386245606,-1000.0,0.000246,2]
[321689420,1712386245616,-6000.0,0.000246,2]
[321689421,1712386245626,-605.1139074,0.00024612,2]
[321689422,1712386245637,-14532.18453417,0.00024616,2]
[321689423,1712386245646,-1135.85631447,0.00024631,2]
[321689424,1712386245656,-1732.67652878,0.00024652,2]
[321689425,1712386245861,-12799.50800539,0.00024652,2]
[321689426,1712386245871,-500.0,0.00024652,2]
[321689427,1712386245879,-500.0,0.00024652,2]
[321689428,1712386245888,-500.0,0.00024652,2]
[321689429,1712386245897,-975.59,0.00024652,2]
[321689430,1712386245906,-1018.91,0.00024652,2]
[321689431,1712386245916,-500.0,0.00024652,2]
[321689432,1712386245925,-502.08,0.00024652,2]
[321689433,1712386245934,-606.65,0.00024652,2]
[321689434,1712386245942,-155.53516304,0.00024653,2]
[321689435,1712386245951,-155.49511206,0.00024653,2]
[321689436,1712386245960,-554.25398322,0.00024653,2]
[321689437,1712386245969,-280.25086343,0.00024653,2]
[321689438,1712386245978,-160.80443676,0.00024653,2]
[321689439,1712386245987,-204.58900402,0.00024653,2]
[321689440,1712386245995,-203.73785724,0.00024653,2]
[321689441,1712386246004,-668.69586431,0.00024653,2]
[321689442,1712386246014,-156.05901752,0.00024653,2]
[321689443,1712386246023,-520.479,0.00024653,2]
[321689444,1712386246032,-161.60671238,0.00024653,2]
[321689445,1712386246041,-155.32309465,0.00024653,2]
[321689446,1712386246050,-155.33359218,0.00024653,2]
[321689447,1712386246060,-359.78591008,0.00024653,2]
[321689448,1712386246069,-155.34569347,0.00024653,2]
[321689449,1712386246078,-1767.75518189,0.00024653,2]
[321689450,1712386246087,-157.76540565,0.00024653,2]
[321689451,1712386246097,-256.3862425,0.00024653,2]
[321689452,1712386246106,-155.32039281,0.00024653,2]
[321689453,1712386246115,-155.37879637,0.00024653,2]
[321689454,1712386246124,-155.48586097,0.00024653,2]
[321689455,1712386246132,-468.4085138,0.00024653,2]
[321689456,1712386246141,-217.93331101,0.00024653,2]
[321689457,1712386246151,-155.73313511,0.00024653,2]
[321689458,1712386246160,-161.19385045,0.00024653,2]
[321689459,1712386246169,-155.75733883,0.00024653,2]
[321689460,1712386246178,-320.5161918,0.00024653,2]
[321689461,1712386246187,-155.0,0.00024653,2]
[321689462,1712386246196,-400.0,0.00024653,2]
[321689463,1712386246206,-379.19673692,0.00024653,2]
[321689464,1712386246216,-255.73479229,0.00024653,2]
[321689465,1712386246226,-155.3235236,0.00024653,2]
[321689466,1712386246235,-155.36484884,0.00024653,2]
[321689467,1712386246244,-324.34469851,0.00024653,2]
[321689468,1712386246253,-322.20223395,0.00024653,2]
[321689469,1712386246262,-266.33427453,0.00024653,2]
[321689470,1712386246271,-1687.94463673,0.00024653,2]
[321689471,1712386246282,-4720.91840811,0.00024653,2]
[321689472,1712386246291,-405.89426657,0.00024653,2]
[321689473,1712386246301,-23958.88387373,0.00024653,2]
[321689474,1712386246310,-236.92004171,0.00024653,2]
[321689475,1712386246319,-178.11377508,0.00024653,2]
[321689476,1712386246328,-428.2120812,0.00024653,2]
[321689477,1712386246337,-1248.19505066,0.00024653,2]
[321689478,1712386246347,-376.29834861,0.00024653,2]
[321689479,1712386246356,-500.0,0.00024653,2]
[321689480,1712386246365,-309.33628351,0.00024653,2]
[321689481,1712386246374,-157.33282581,0.00024653,2]
[321689482,1712386246383,-158.00011926,0.00024653,2]
[321689483,1712386246392,-361.30729474,0.00024653,2]
[321689484,1712386246400,-307.61017197,0.00024653,2]
[321689485,1712386246409,-1112.85463023,0.00024653,2]
[321689486,1712386246419,-155.42876592,0.00024653,2]
[321689487,1712386246428,-257.48861887,0.00024653,2]
[321689488,1712386246436,-355.32074254,0.00024653,2]
[321689489,1712386246446,-231.43466879,0.00024653,2]
[321689490,1712386246455,-554.85409526,0.00024653,2]
[321689491,1712386246466,-155.83007409,0.00024653,2]
[321689492,1712386246476,-215.1986525,0.00024653,2]
[321689493,1712386246485,-2994.02422326,0.00024653,2]
[321689494,1712386246494,-358.55999251,0.00024653,2]
[321689495,1712386246503,-7346.24310499,0.00024653,2]
[321689496,1712386246512,-1837.638074,0.00024654,2]
[321689497,1712386246525,-516.075,0.00024654,2]
[321689498,1712386246536,-13022.837226,0.00024654,2]
[321689499,1712386246545,-200.0,0.00024654,2]
[321689500,1712386246554,-500.0,0.00024654,2]
[321689501,1712386246563,-462.67896557,0.00024654,2]
[321689502,1712386246572,-686.24,0.00024654,2]
[321689503,1712386246581,-686.24,0.00024654,2]
[321689504,1712386246593,-686.24,0.00024654,2]
[321689505,1712386246602,-627.84,0.00024654,2]
[321689506,1712386246611,-627.84,0.00024654,2]
[321689507,1712386246620,-627.84,0.00024654,2]
[321689508,1712386246630,-500.0,0.00024654,2]
[321689509,1712386246639,-500.0,0.00024654,2]
[321689510,1712386246648,-500.0,0.00024654,2]
[321689511,1712386246657,-500.0,0.00024654,2]
[321689512,1712386246667,-500.0,0.00024654,2]
[321689513,1712386246676,-500.0,0.00024654,2]
[321689514,1712386246686,-500.0,0.00024654,2]
[321689515,1712386246695,-500.0,0.00024654,2]
[321689516,1712386246704,-500.0,0.00024654,2]
[321689517,1712386246717,-545.86,0.00024654,2]
[321689518,1712386246726,-545.86,0.00024654,2]
[321689519,1712386246735,-545.86,0.00024654,2]
[321689520,1712386246744,-500.0,0.00024654,2]
[321689521,1712386246753,-500.0,0.00024654,2]
[321689522,1712386246762,-500.0,0.00024654,2]
[321689523,1712386246771,-500.0,0.00024654,2]
[321689524,1712386246780,-500.0,0.00024654,2]
[321689525,1712386246788,-500.0,0.00024654,2]
[321689526,1712386246798,-500.0,0.00024654,2]
[321689527,1712386246807,-500.0,0.00024654,2]
[321689528,1712386246816,-500.0,0.00024654,2]
[321689529,1712386246825,-500.0,0.00024654,2]
[321689530,1712386246835,-500.0,0.00024654,2]
[321689531,1712386246844,-500.0,0.00024654,2]
[321689532,1712386246853,-500.0,0.00024654,2]
[321689533,1712386246862,-500.0,0.00024654,2]
[321689534,1712386246871,-433.92,0.00024654,2]
[321689535,1712386246880,-500.0,0.00024654,2]
[321689536,1712386246889,-500.0,0.00024654,2]
[321689537,1712386246898,-500.0,0.00024654,2]
[321689538,1712386246907,-625.68,0.00024654,2]
[321689539,1712386246916,-625.68,0.00024654,2]
[321689540,1712386246925,-625.68,0.00024654,2]
[321689541,1712386246934,-640.96,0.00024654,2]
[321689542,1712386246944,-404.48624043,0.00024655,2]
[321689543,1712386246953,-157.26949802,0.00024655,3]
[321689544,1712386246965,-500.0,0.00024655,2]
[321689545,1712386246974,-500.0,0.00024655,2]
[321689546,1712386246985,-543.43820341,0.00024655,2]
[321689547,1712386246995,-500.0,0.00024655,2]
[321689548,1712386247004,-500.0,0.00024655,2]
[321689549,1712386247013,-500.0,0.00024655,2]
[321689550,1712386247022,-500.0,0.00024655,2]
[321689551,1712386247031,-975.59,0.00024655,2]
[321689552,1712386247040,-500.0,0.00024655,2]
[321689553,1712386247049,-1018.91,0.00024655,2]
[321689554,1712386247058,-1256.98,0.00024655,2]
[321689555,1712386247067,-500.0,0.00024655,2]
[321689556,1712386247075,-500.0,0.00024655,2]
[321689557,1712386247084,-611.11,0.00024655,2]
[321689558,1712386247093,-500.0,0.00024655,2]
[321689559,1712386247102,-6967.8017031,0.00024655,2]
[321689560,1712386247111,-500.0,0.00024655,2]
[321689561,1712386247120,-500.0,0.00024655,2]
[321689562,1712386247129,-1160.49,0.00024655,2]
[321689563,1712386247138,-18417.553563,0.00024655,2]
[321689564,1712386247148,-502.08,0.00024655,2]
[321689565,1712386247157,-500.0,0.00024655,2]
[321689566,1712386247166,-500.0,0.00024655,2]
[321689567,1712386247176,-606.65,0.00024655,2]
[321689568,1712386247185,-369.17183081,0.00024655,2]
[321689569,1712386247194,-500.0,0.00024655,2]
[321689570,1712386247203,-500.0,0.00024655,2]
[321689571,1712386247213,-155.43758547,0.00024656,2]
[321689572,1712386247222,-156.42033971,0.00024656,2]
[321689573,1712386247231,-260.08259237,0.00024656,2]
[321689574,1712386247240,-500.0,0.00024656,2]
[321689575,1712386247250,-500.0,0.00024656,2]
[321689576,1712386247259,-500.0,0.00024656,2]
[321689577,1712386247268,-500.0,0.00024656,2]
[321689578,1712386247278,-500.0,0.00024656,2]
[321689579,1712386247287,-329.97664061,0.00024656,2]
[321689580,1712386247296,-101624.76772201,0.00024656,2]
[321689581,1712386247315,-500.0,0.00024328,2]
[321689582,1712386247324,-19.47919292,0.00024656,2]
[321689583,1712386247457,-543.36,0.00024328,2]
[321689584,1712386247467,-168.41203609,0.00024598,2]
[321689585,1712386247478,-331.58796391,0.00024598,2]
[321689586,1712386247488,-500.0,0.00024599,2]
[321689587,1712386247498,-500.0,0.00024599,2]
[321689588,1712386247507,-543.36,0.00024599,2]
[321689589,1712386247516,-173.47143431,0.00024599,2]
[321689590,1712386247532,-369.88856569,0.00024599,2]
[321689591,1712386247541,-543.36,0.00024652,2]
[321689592,1712386247550,-370.7050843,0.00024654,2]
[321689594,1712386271072,-539.06283141,0.00024654,2]
[321689595,1712386271310,-177.59,0.00023893,2]
[321689596,1712386271320,-975.65179429,0.00024654,2]
[321689597,1712386271329,-25.90571195,0.00024655,2]
[321689598,1712386271356,-474.09428805,0.00024655,2]
[321689599,1712386271365,-543.36,0.00024655,2]
[321689600,1712386271374,-2283.74571195,0.00024656,2]
[321689601,1712386271392,-6802.2,0.00024656,2]
[321689602,1712386271650,-396.64687485,0.00024598,2]
[321689603,1712386271659,-304.46832005,0.00024598,2]
[321689604,1712386271668,-364.86720588,0.00024598,2]
[321689605,1712386271678,-342.68138423,0.00024598,2]
[321689606,1712386271687,-1276.97494882,0.00024598,2]
[321689607,1712386271698,-4961.46695474,0.00024656,2]
[321689608,1712386271784,-2892.2,0.00024656,2]
[321689612,1712386458235,509.42091949,0.0002,2]
[321689613,1712386470141,1600.0,0.00015,2]
[321689614,1712386646461,-277.8,0.00021608,2]
[321689615,1712386646486,-748.32846953,0.00023368,2]
[321689616,1712386646511,-3576.87153047,0.00023503,2]
[321689617,1712386673439,1419.26034498,0.00017627,2]
[321689618,1712386678009,-397.0,0.00023503,2]
[321689622,1712386914165,2725.75685667,0.000235,5]
[321689624,1712386924456,-661.50938928,0.00024819,9]
[321689625,1712386924494,-661.50938928,0.0002486,9]
[321689626,1712386924523,-661.50938928,0.000249,9]
[321689627,1712386924550,-394.59277329,0.00024978,10]
[321689628,1712386924573,-183.4672918,0.00024979,10]
[321689629,1712386924631,-606.19099736,0.00025,10]
[321689630,1712386947662,2725.0,0.000235,7]
[321689631,1712386962766,264.60375573,0.00024552,9]
[321689632,1712386967740,264.60375571,0.00024639,9]
[321689633,1712386972936,264.60375571,0.00024726,9]
[321689634,1712386977734,264.60375571,0.00024813,9]
[321689635,1712386982974,264.60375571,0.000249,9]
[321689636,1712387010445,208.20199114,0.00024398,10]
[321689637,1712387215514,-3502.68757329,0.00021518,2]
[321689638,1712387215539,-285.65,0.00021519,2]
[321689639,1712387215564,-881.38408493,0.00022937,2]
[321689640,1712387215589,-800.0,0.00023362,2]
[321689641,1712387215613,-349.72,0.00023407,2]
[321689642,1712387215637,-250.0,0.00023453,2]
[321689643,1712387215661,-1500.0,0.00023474,2]
[321689644,1712387215685,-200.0,0.00023482,2]
[321689645,1712387215710,-6026.12846953,0.00023503,2]
[321689646,1712387215734,-500.0,0.00023597,2]
[321689647,1712387215758,-269.248782,0.00023597,2]
[321689648,1712387215781,-496.73097802,0.00023597,2]
[321689649,1712387215806,-500.0,0.00023597,2]
[321689650,1712387215831,-533.04046709,0.00023597,2]
[321689651,1712387216063,-500.0,0.00023597,2]
[321689652,1712387216090,-500.0,0.00023597,2]
[321689653,1712387216117,-499.70506638,0.00023597,2]
[321689654,1712387216143,-500.0,0.00023597,2]
[321689655,1712387216169,-266.52919166,0.00023597,2]
[321689656,1712387216193,-18446.25465864,0.00023678,2]
[321689657,1712387216220,-192.92072846,0.00023782,2]
[321689662,1712387431530,-92.72927154,0.00023782,2]
[321689663,1712387431544,-188.26618434,0.0002391,2]
[321689664,1712387431553,-516.0,0.00024,2]
[321689665,1712387431562,-357.89962919,0.00024061,10]
[321689667,1712387431572,-2636.32265369,0.000243,2]
[321689670,1712387431593,-1555.88174631,0.000243,2]
[321689672,1712387431602,-605.11390754,0.000243,2]
[321689673,1712387431612,-2500.0,0.000243,2]
[321689674,1712387431622,-1480.67815782,0.000243,2]
[321689675,1712387431632,-1432.72717833,0.000243,2]
[321689676,1712387431641,-500.0,0.00024328,2]
[321689677,1712387431651,-156.85432015,0.00024332,2]
[321689678,1712387431660,-605.1139074,0.00024343,2]
[321689679,1712387431670,-455.70724366,0.00024352,2]
[321689680,1712387431679,-1480.6781578,0.00024367,2]
[321689681,1712387431688,-605.1139074,0.00024386,2]
[321689682,1712387431698,-479.81235898,0.0002439,2]
[321689683,1712387431707,-155.34,0.0002439,2]
[321689684,1712387431716,-1590.07838797,0.00024398,2]
[321689685,1712387431727,-500.0,0.00024399,2]
[321689686,1712387431735,-518.35351566,0.00024399,2]
[321689687,1712387431745,-500.0,0.00024399,2]
[321689688,1712387431754,-544.48881619,0.00024399,2]
[321689689,1712387431764,-500.0,0.00024399,2]
[321689690,1712387431775,-511.45474773,0.00024399,2]
[321689691,1712387431785,-429.80664816,0.00024399,2]
[321689692,1712387431794,-500.0,0.00024399,2]
[321689693,1712387431803,-500.0,0.00024399,2]
[321689694,1712387431813,-500.0,0.00024399,2]
[321689695,1712387431822,-500.0,0.00024399,2]
[321689696,1712387431832,-500.0,0.00024399,2]
[321689697,1712387431842,-500.0,0.00024399,2]
[321689698,1712387431852,-530.82,0.00024399,2]
[321689699,1712387431861,-530.82,0.00024399,2]
[321689700,1712387431871,-600.46,0.00024399,2]
[321689701,1712387431880,-600.46,0.00024399,2]
[321689702,1712387431889,-600.46,0.00024399,2]
[321689703,1712387431899,-2192.61,0.00024399,2]
[321689704,1712387431908,-2192.61,0.00024399,2]
[321689705,1712387431920,-549.36,0.00024399,2]
[321689706,1712387431929,-549.36,0.00024399,2]
[321689707,1712387431938,-549.36,0.00024399,2]
[321689708,1712387431947,-669.1,0.00024399,2]
[321689709,1712387431957,-669.1,0.00024399,2]
[321689710,1712387431966,-500.0,0.00024399,2]
[321689711,1712387431977,-84.65257186,0.00024399,2]
[321689712,1712387432494,-415.34742814,0.00024399,2]
[321689713,1712387432503,-165.2112269,0.00024399,2]
[321689714,1712387432549,-334.7887731,0.00024399,2]
[321689715,1712387432558,-321.95,0.00024399,2]
[321689716,1712387432568,-77.93044723,0.00024399,2]
[321689717,1712387432580,-422.06955277,0.00024399,2]
[321689718,1712387432590,-500.0,0.00024399,2]
[321689719,1712387432599,-183.72540685,0.00024399,2]
[321689724,1712387437582,-316.27459315,0.00024399,2]
[321689725,1712387437592,-19.99517006,0.00024399,2]
[321689726,1712387437607,-480.00482994,0.00024399,2]
[321689727,1712387437618,-500.0,0.00024399,2]
[321689728,1712387437627,-606.67,0.00024399,2]
[321689729,1712387437637,-500.0,0.00024399,2]
[321689730,1712387437647,-606.67,0.00024399,2]
[321689731,1712387437657,-500.0,0.00024399,2]
[321689732,1712387437666,-500.0,0.00024399,2]
[321689733,1712387437676,-500.0,0.00024399,2]
[321689734,1712387437685,-296.28896034,0.00024399,2]
[321689735,1712387437702,-203.71103966,0.00024399,2]
[321689736,1712387437711,-322.75580841,0.00024399,2]
[321689737,1712387437723,-375.89419159,0.00024399,2]
[321689738,1712387437736,-698.65,0.00024399,2]
[321689739,1712387437746,-500.0,0.00024399,2]
[321689740,1712387437755,-500.0,0.00024399,2]
[321689741,1712387437764,-500.0,0.00024399,2]
[321689742,1712387437774,-500.0,0.00024399,2]
[321689743,1712387437783,-500.0,0.00024399,2]
[321689744,1712387437792,-500.0,0.00024399,2]
[321689745,1712387437802,-500.0,0.00024399,2]
[321689746,1712387437812,-500.0,0.00024399,2]
[321689747,1712387437822,-500.0,0.00024399,2]
[321689748,1712387437831,-435.76054409,0.00024399,2]
[321689749,1712387437841,-500.0,0.00024399,2]
[321689750,1712387437850,-500.0,0.00024399,2]
[321689751,1712387437859,-500.0,0.00024399,2]
[321689752,1712387437870,-500.0,0.00024399,2]
[321689753,1712387437879,-500.0,0.00024399,2]
[321689754,1712387437889,-500.0,0.00024399,2]
[321689755,1712387437898,-513.63322311,0.00024399,2]
[321689756,1712387437908,-500.0,0.00024399,2]
[321689757,1712387437918,-500.0,0.00024399,2]
[321689758,1712387437929,-500.0,0.00024399,2]
[321689759,1712387437938,-500.0,0.00024399,2]
[321689760,1712387437948,-500.0,0.00024399,2]
[321689761,1712387437957,-500.0,0.00024399,2]
[321689763,1712387437966,-500.0,0.00024399,2]
[321689764,1712387437976,-500.0,0.00024399,2]
[321689765,1712387437986,-500.0,0.00024399,2]
[321689766,1712387437998,-500.0,0.00024399,2]
[321689767,1712387438010,-500.0,0.00024399,2]
[321689768,1712387438020,-500.0,0.00024399,2]
[321689769,1712387438030,-500.0,0.00024399,2]
[321689770,1712387438040,-500.0,0.00024399,2]
[321689771,1712387438050,-500.0,0.00024399,2]
[321689772,1712387438060,-500.0,0.00024399,2]
[321689773,1712387438071,-853.64,0.00024399,2]
[321689774,1712387438081,-853.64,0.00024399,2]
[321689775,1712387438093,-1152.23,0.00024399,2]
[321689776,1712387438103,-1152.23,0.00024399,2]
[321689777,1712387438114,-500.0,0.00024399,2]
[321689778,1712387438125,-500.0,0.00024399,2]
[321689779,1712387438134,-529.13446857,0.00024399,2]
[321689780,1712387438143,-500.0,0.00024399,2]
[321689781,1712387438152,-500.0,0.00024399,2]
[321689782,1712387438161,-158.02167902,0.00024399,2]
[321689783,1712387438173,-979.47,0.00024399,2]
[321689784,1712387438182,-500.0,0.00024399,2]
[321689785,1712387438191,-979.47,0.00024399,2]
[321689786,1712387438201,-500.0,0.00024399,2]
[321689787,1712387438210,-891.55,0.00024399,2]
[321689788,1712387438219,-891.55,0.00024399,2]
[321689789,1712387438231,-500.0,0.00024399,2]
[321689790,1712387438241,-500.0,0.00024399,2]
[321689791,1712387438250,-500.0,0.00024399,2]
[321689792,1712387438259,-468.80251702,0.00024399,2]
[321689793,1712387438268,-500.0,0.00024399,2]
[321689794,1712387438278,-500.0,0.00024399,2]
[321689795,1712387438287,-500.0,0.00024399,2]
[321689796,1712387438296,-360.46333226,0.00024399,2]
[321689797,1712387438305,-500.0,0.00024399,2]
[321689798,1712387438314,-500.0,0.00024399,2]
[321689799,1712387438323,-500.0,0.00024399,2]
[321689800,1712387438333,-500.0,0.00024399,2]
[321689801,1712387438342,-500.0,0.00024399,2]
[321689802,1712387438352,-500.0,0.00024399,2]
[321689803,1712387438361,-500.0,0.00024399,2]
[321689804,1712387438371,-500.0,0.00024399,2]
[321689805,1712387438380,-500.0,0.00024399,2]
[321689806,1712387438389,-500.0,0.00024399,2]
[321689807,1712387438399,-500.0,0.00024399,2]
[321689808,1712387438408,-500.0,0.00024399,2]
[321689809,1712387438417,-500.0,0.00024399,2]
[321689810,1712387438426,-500.0,0.00024399,2]
[321689811,1712387438435,-500.0,0.00024399,2]
[321689812,1712387438444,-500.0,0.00024399,2]
[321689813,1712387438453,-500.0,0.00024399,2]
[321689814,1712387438462,-500.0,0.00024399,2]
[321689815,1712387438471,-500.0,0.00024399,2]
[321689816,1712387438481,-500.0,0.00024399,2]
[321689817,1712387438489,-492.86700579,0.00024399,2]
[321689818,1712387438499,-500.0,0.00024399,2]
[321689819,1712387438508,-538.08,0.00024399,2]
[321689820,1712387438516,-506.75451131,0.00024399,2]
[321689821,1712387438526,-1063.78,0.00024399,2]
[321689822,1712387438536,-538.08,0.00024399,2]
[321689823,1712387438547,-1063.78,0.00024399,2]
[321689824,1712387438557,-500.0,0.00024399,2]
[321689825,1712387438567,-500.0,0.00024399,2]
[321689826,1712387438576,-500.0,0.00024399,2]
[321689827,1712387438587,-500.0,0.00024399,2]
[321689828,1712387438596,-500.0,0.00024399,2]
[321689829,1712387438605,-500.0,0.00024399,2]
[321689830,1712387438614,-500.0,0.00024399,2]
[321689831,1712387438623,-500.0,0.00024399,2]
[321689832,1712387438632,-500.0,0.00024399,2]
[321689833,1712387438641,-500.0,0.00024399,2]
[321689834,1712387438650,-382.97893267,0.00024399,2]
[321689835,1712387438659,-411.04,0.00024399,2]
[321689836,1712387438668,-500.0,0.00024399,2]
[321689837,1712387438677,-500.0,0.00024399,2]
[321689838,1712387438686,-500.0,0.00024399,2]
[321689839,1712387438695,-500.0,0.00024399,2]
[321689840,1712387438704,-500.0,0.00024399,2]
[321689841,1712387438713,-500.0,0.00024399,2]
[321689842,1712387438722,-500.0,0.00024399,2]
[321689843,1712387438732,-521.64580422,0.00024399,2]
[321689844,1712387438741,-500.0,0.00024399,2]
[321689845,1712387438751,-500.0,0.00024399,2]
[321689846,1712387438760,-500.0,0.00024399,2]
[321689847,1712387438769,-500.0,0.00024399,2]
[321689848,1712387438779,-500.0,0.00024399,2]
[321689849,1712387438788,-500.0,0.00024399,2]
[321689850,1712387438798,-500.0,0.00024399,2]
[321689851,1712387438808,-500.0,0.00024399,2]
[321689852,1712387438818,-547.47,0.00024399,2]
[321689853,1712387438827,-547.47,0.00024399,2]
[321689854,1712387438837,-547.47,0.00024399,2]
[321689855,1712387438846,-1312.15,0.00024399,2]
[321689856,1712387438855,-1312.15,0.00024399,2]
[321689857,1712387438864,-500.0,0.00024399,2]
[321689858,1712387438873,-459.01217481,0.00024399,2]
[321689859,1712387438882,-500.0,0.00024399,2]
[321689860,1712387438892,-500.0,0.00024399,2]
[321689861,1712387438901,-500.0,0.00024399,2]
[321689862,1712387438910,-500.0,0.00024399,2]
[321689863,1712387438922,-500.0,0.00024399,2]
[321689864,1712387438932,-500.0,0.00024399,2]
[321689865,1712387438941,-500.0,0.00024399,2]
[321689866,1712387438951,-500.0,0.00024399,2]
[321689867,1712387438961,-500.0,0.00024399,2]
[321689868,1712387438970,-500.0,0.00024399,2]
[321689869,1712387438979,-500.0,0.00024399,2]
[321689870,1712387438988,-500.0,0.00024399,2]
[321689871,1712387438998,-500.0,0.00024399,2]
[321689872,1712387439008,-500.0,0.00024399,2]
[321689873,1712387439021,-500.0,0.00024399,2]
[321689874,1712387439031,-500.0,0.00024399,2]
[321689875,1712387439041,-500.0,0.00024399,2]
[321689876,1712387439051,-500.0,0.00024399,2]
[321689877,1712387439061,-500.0,0.00024399,2]
[321689878,1712387439070,-500.0,0.00024399,2]
[321689879,1712387439079,-500.0,0.00024399,2]
[321689880,1712387439090,-500.0,0.00024399,2]
[321689881,1712387439099,-500.0,0.00024399,2]
[321689882,1712387439108,-500.0,0.00024399,2]
[321689883,1712387439118,-500.0,0.00024399,2]
[321689884,1712387439128,-500.0,0.00024399,2]
[321689885,1712387439138,-512.91241241,0.00024399,2]
[321689886,1712387439147,-500.0,0.00024399,2]
[321689887,1712387439157,-555.50619942,0.00024399,2]
[321689888,1712387439166,-500.0,0.00024399,2]
[321689889,1712387439176,-500.0,0.00024399,2]
[321689890,1712387439186,-500.0,0.00024399,2]
[321689891,1712387439195,-500.0,0.00024399,2]
[321689892,1712387439205,-500.0,0.00024399,2]
[321689893,1712387439214,-500.0,0.00024399,2]
[321689894,1712387439224,-525.41,0.00024399,2]
[321689895,1712387439234,-525.41,0.00024399,2]
[321689896,1712387439243,-500.0,0.00024399,2]
[321689897,1712387439253,-500.0,0.00024399,2]
[321689898,1712387439262,-834.15,0.000244,2]
[321689899,1712387439271,-505404.3445,0.000244,2]
[321689900,1712387439280,-4723.694,0.000244,2]
[321689901,1712387439290,-154.52365583,0.000244,2]
[321689902,1712387439299,-7500.0,0.000244,2]
[321689903,1712387439308,-1000.0,0.000244,2]
[321689904,1712387439317,-13465.5588671,0.000244,2]
[321689905,1712387439327,-164.85658768,0.00024409,2]
[321689906,1712387439336,-1571.18309,0.0002441,2]
[321689907,1712387439345,-154.52365558,0.0002442,2]
[321689908,1712387439354,-500.0,0.00024428,2]
[321689909,1712387439363,-605.1139074,0.00024429,2]
[321689910,1712387439372,-1480.6781578,0.00024433,2]
[321689911,1712387439381,-154.52365558,0.0002444,2]
[321689912,1712387439390,-13465.55886706,0.00024445,2]
[321689913,1712387439400,-170.9701071,0.00024456,2]
[321689914,1712387439409,-500.0,0.00024459,2]
[321689915,1712387439418,-154.52365558,0.0002446,2]
[321689916,1712387439428,-605.1139074,0.00024471,2]
[321689917,1712387439438,-154.52365558,0.0002448,2]
[321689918,1712387439447,-155.34,0.0002449,2]
[321689919,1712387439457,-13465.55886706,0.00024491,2]
[321689920,1712387439470,-500.0,0.00024498,2]
[321689921,1712387439480,-500.0,0.00024498,2]
[321689922,1712387439490,-500.0,0.00024498,2]